[Event "Teplice Open 2022"]
[Site "Teplice"]
[Date "2022.06.23"]
[Round "6.1"]
[White "Demchenko, Anton"]
[Black "Pultinevicius, Paulius"]
[Result "1-0"]
[ECO "B12"]
[WhiteElo "2654"]
[BlackElo "2536"]
[Annotator "TA"]
[PlyCount "157"]
[EventDate "2022.06.18"]
[EventType "swiss"]
[EventCountry "CZE"]
[SourceTitle "playchess.com"]
[Source "ChessBase"]
[SourceQuality "1"]
[TimeControl "40/5400+30:1800+30"]

{[%evp 9,157,14,20,18,9,16,3,19,0,18,19,10,8,0,39,30,31,4,10,-11,-8,-1,-10,-30,-18,-19,0,0,52,39,81,76,61,68,72,60,77,54,79,0,60,60,60,60,60,60,70,59,69,71,90,34,41,8,8,0,10,0,24,36,37,37,96,100,208,191,200,195,3411,400,711,697,614,311,278,157,148,36,109,68,177,0,110,0,192,45,37,43,137,130,256,237,360,213,225,222,200,207,398,384,351,315,29956,29957,29960,5714,29961,6644,29969,29970,29970,29971,29971,29971,29971,29972,29972,0,29969,29966,29966,0,12714,1721,29966,29967,29967,29967,29967,29968,29968,29968,29969,29969,29970,29971,29971,29970,29972,29973,29965,29965,29974,29975,29975,29976,29976,29977,29976,29974]} 1. e4 {[%emt 0:00:04][%cal Be2e4,Be4e5][%mdl 32]} c6 {[%emt 0:00:07]} 2. d4 {[%emt 0:00:27]} d5 {[%emt 0:00:05]} 3. e5 {[%emt 0:00:26]} Bf5 {[%emt 0:00:05]} 4. Nd2 {[%emt 0:00:06]} e6 {[%emt 0:00:07]} 5. Nb3 {[%emt 0:00:06]} c5 {[%emt 0:00:04]} 6. Bb5+ {[%emt 0:00:39] B12: Caro-Kann: Advance Variation.} (6. dxc5 {is interesting.} Bxc5 7. Nxc5 Qa5+ 8. c3) 6... Nc6 {[%emt 0:02:01]} 7. dxc5 {[%emt 0:00:34]} Bxc5 {[%emt 0:01:16][%cal Og8e7]} 8. Bxc6+ {[%emt 0:00:08] The position is equal.} bxc6 {[%emt 0:00:05]} 9. Nxc5 {[%emt 0:00:06]} Qa5+ {[%emt 0:00:06]} 10. c3 {[%emt 0:00:05]} Qxc5 {[%emt 0:00:04]} 11. Ne2 {[%emt 0:00:04] [#]} Qc4 $146 {[%emt 0:07:57]} ({Predecessor:} 11... Ne7 12. O-O a5 13. Be3 Qb5 14. a4 Qxb2 15. Bc5 Qc2 16. Qxc2 Bxc2 17. Nd4 Bg6 {1-0 (40) Alekseenko,K (2699)-Sjugirov,S (2663) Sochi 2021}) 12. b3 {[%emt 0:23:27]} Qa6 {[%emt 0:01:46]} 13. Nf4 {[%emt 0:05:13]} Ne7 {[%emt 0:04:37]} 14. g4 {[%emt 0:02:28]} Be4 {[%emt 0:06:33]} 15. f3 {[%emt 0:01:59]} Bg6 {[%emt 0:00:12]} 16. Kf2 {[%emt 0:06:37]} (16. Qe2 $5 {[%cal Re2a6]} Qa5 17. Bd2 $11) 16... h5 {[%emt 0:02:28] Threatens to win with ...hxg4.} 17. h3 {[%emt 0:00:20]} Qa5 {[%emt 0:14:40]} 18. Bd2 {[%emt 0:16:49]} hxg4 {[%emt 0:17:36]} (18... Qc7 $11) 19. hxg4 $14 {[%emt 0:00:27]} O-O-O {[%emt 0:00:26]} 20. Rxh8 {[%emt 0:06:13]} Rxh8 {[%emt 0:00:20]} 21. Kg2 {[%emt 0:00:02]} Rd8 {[%emt 0:02:44]} 22. Qe1 {[%emt 0:03:11]} c5 {[%emt 0:04:35]} 23. Qf2 {[%emt 0:09:31]} Kb7 {[%emt 0:03:48]} 24. a4 {[%emt 0:04:34]} (24. c4 $16 Qb6 25. cxd5 exd5 26. Re1) 24... Bc2 {[%emt 0:08:26]} (24... Qc7 $11) 25. c4 {[%emt 0:08:04]} Qc7 {[%emt 0:06:48]} 26. cxd5 {[%emt 0:00:18]} Nxd5 {[%emt 0:02:15]} 27. Rc1 {[%emt 0:00:15]} Bh7 {[%emt 0:02:11]} 28. Qh4 {[%emt 0:08:43]} Nxf4+ {[%emt 0:05:54]} 29. Bxf4 {[%emt 0:00:02]} Bg6 {[%emt 0:00:54] [#]} 30. Qf2 {[%emt 0:02:55]} (30. Rxc5 $1 $16 Qxc5 31. Qxd8) 30... Rd5 {[%emt 0:00:30]} 31. Rc3 {[%emt 0:01:00]} (31. Be3 {with more complications.} a6 32. Bxc5 Qxe5 33. Bb6) 31... f5 {[%emt 0:03:25]} 32. g5 {[%emt 0:00:28]} Qa5 {[%emt 0:00:32]} 33. Qe3 {[%emt 0:00:18]} Qb4 {[%emt 0:02:46]} 34. Rc4 {[%emt 0:00:25]} Qa3 {[%emt 0:00:08]} 35. Kg3 {[%emt 0:00:42]} Be8 {[%emt 0:01:37]} (35... Qa1 $14) 36. Qc3 $1 $16 {[%emt 0:00:02] Be3 is the strong threat.} Bc6 {[%emt 0:00:34]} (36... Bg6 $16 {keeps fighting.} 37. a5 Qa2) 37. Be3 $18 {[%emt 0:00:22][%cal Re3c5]} Qa2 {[%emt 0:00:38] Strongly threatening ...Qe2.} 38. Bxc5 {[%emt 0:00:42] White threatens Qb4+ and mate.} (38. Rxc5 f4+ 39. Bxf4 Rxc5 40. Qb4+ (40. Qxc5 Qe2 $16) 40... Kc7 41. Qxc5 Qxb3) 38... Qe2 $2 {[%emt 0:00:37]} (38... Qd2) 39. Rb4+ {[%emt 0:00:56]} (39. Bd6 $142 {White wants to mate with Rb4+.} a5 40. Rxc6 f4+ 41. Kxf4 Qd2+ 42. Qxd2 Rxd2 43. Rc7+ Kb6 44. Rxg7) 39... Kc8 {[%emt 0:00:31]} (39... Ka6 $142 40. Bd6 Bd7 41. Qc4+ (41. Qc7 Qe1+ 42. Kh3 Qh1+ 43. Kg3 Qe1+ 44. Kh3 Qh1+ 45. Kg3 Qe1+ $11) 41... Qxc4 42. Rxc4 Kb6) 40. Bd6 {[%emt 0:00:40]} Qa6 {[%emt 0:00:30]} 41. Rc4 {[%emt 0:19:13]} Kd7 {[%emt 0:00:05]} 42. Kf4 {[%emt 0:03:04]} (42. Bc5 $18) 42... Rd1 $16 {[%emt 0:03:01]} 43. Ba3 {[%emt 0:03:54]} (43. Bb4 $16) 43... Qb7 {[%emt 0:03:57]} ({Better is} 43... Qb6 $14 44. Bc5 Qb7) 44. Qc2 {[%emt 0:00:22] Really sharp!} Rd5 {[%emt 0:07:46]} (44... Rh1 $14) 45. Qc3 {[%emt 0:01:06]} ({White should try} 45. Kg3 $18) 45... Rd1 {[%emt 0:00:20]} 46. Qc2 {[%emt 0:00:40]} (46. Qe3 $1 $16 {[%cal Re3c5]} Qb6 47. Bc5) 46... Rd5 $18 {[%emt 0:00:06] [#]} ({Much less strong is} 46... Bxf3 47. Bd6 Kd8 48. Rc7 $16) 47. Bd6 {[%emt 0:00:41]} (47. Kg3 $1 $18) 47... Qb6 $1 $14 {[%emt 0:00:42]} 48. Bc5 $36 {[%emt 0:00:15][%mdl 2048] Inhibits Rd4+. White is more active.} Qb8 {[%emt 0:00:13] White now steadily converts the win.} (48... Qa5 $1 $14) 49. Bd4 $16 {[%emt 0:04:08] White is more active.} Qb7 {[%emt 0:12:08]} (49... Bb7 $16) 50. Qc3 $18 {[%emt 0:00:07]} Qa6 {[%emt 0:00:52] [#]} (50... a5 $142 51. Ke3 Qc8) 51. Kg3 {[%emt 0:00:25]} (51. Bxa7 $142 $1 {[%mdl 512] Hoping for Bf2.} Qxa7 (51... Rd1 52. Qc2) 52. Rxc6 Qd4+ 53. Qxd4 Rxd4+ 54. Ke3) 51... Qa5 {[%emt 0:03:03]} 52. Qxa5 {[%emt 0:01:27]} ({But not} 52. Rxc6 Qxc3 53. Rxc3 Rxd4) 52... Rxa5 {[%emt 0:00:05][%mdl 4096] Endgame KRB-KRB} 53. g6 {[%emt 0:00:24] Black must now prevent Kf4.} Bd5 $2 {[%emt 0:00:51]} (53... Rd5 54. Bxa7 Rxe5) 54. Rc3 {[%emt 0:00:01]} Ra6 {[%emt 0:00:51]} 55. Kf4 {[%emt 0:00:06]} Rc6 $2 {[%emt 0:00:47]} (55... Kd8 $18 56. Bf2 Kd7) 56. Rxc6 {[%emt 0:00:59]} Kxc6 {[%emt 0:00:05] KB-KB} 57. b4 {[%emt 0:00:47]} Bb3 {[%emt 0:01:27]} 58. a5 {[%emt 0:00:49]} Kd7 {[%emt 0:02:41]} 59. Bxa7 {[%emt 0:00:10]} Bc4 {[%emt 0:00:08]} 60. Bc5 {[%emt 0:00:18]} Ke8 {[%emt 0:00:04]} 61. Bd6 {[%emt 0:00:33]} Bb5 {[%emt 0:00:10]} 62. Ke3 {[%emt 0:01:02]} Kd8 {[%emt 0:00:05]} 63. Kf4 {[%emt 0:00:29]} Ke8 $1 {[%emt 0:00:23]} 64. Bb8 {[%emt 0:00:20]} Kd7 {[%emt 0:00:10]} 65. Ba7 $2 {[%emt 0:00:07]} (65. Kg5 {mates} Bc4 66. Kf4 Ke8 67. Bd6 Bf1 68. Ke3 f4+ 69. Kxf4 Bb5 70. Ke3) 65... Ke8 $2 {[%emt 0:00:21][%mdl 8192]} (65... Bc4 $11 66. Bc5 Ke8) 66. Kg5 {[%emt 0:00:45]} (66. Bb6 $142 Be2 67. Bc5) 66... Be2 {[%emt 0:00:10]} 67. f4 {[%emt 0:00:08] White mates.} Bb5 {[%emt 0:00:29]} 68. Bf2 {[%emt 0:00:18]} Kd7 {[%emt 0:01:32]} 69. Kh4 {[%emt 0:00:18]} Ke7 {[%emt 0:00:29]} 70. Bc5+ {[%emt 0:00:18]} Ke8 {[%emt 0:00:05]} 71. Bd6 {[%emt 0:00:25]} Bc4 {[%emt 0:00:09]} 72. Kg3 {[%emt 0:00:05]} Bb5 {[%emt 0:00:05]} 73. Kf2 {[%emt 0:00:43]} Kd8 {[%emt 0:00:05]} 74. Ke3 {[%emt 0:00:08]} Kc8 {[%emt 0:01:19]} 75. Kd4 {[%emt 0:00:59]} Be8 {[%emt 0:00:16]} 76. Kc5 {[%emt 0:00:04]} Bxg6 {[%emt 0:00:15]} 77. b5 {[%emt 0:00:20]} Bh5 {[%emt 0:00:05]} 78. a6 {[%emt 0:01:02]} Be2 {[%emt 0:00:18]} 79. Kb4 {[%emt 0:00:05] Weighted Error Value: White=0.38/Black=0.56} 1-0

[Event "Teplice Open 2022"]
[Site "Teplice"]
[Date "2022.06.23"]
[Round "6.2"]
[White "Yilmazyerli, Mert"]
[Black "Ali Marandi, Cemil Can"]
[Result "1/2-1/2"]
[ECO "D85"]
[WhiteElo "2502"]
[BlackElo "2532"]
[Annotator "TA"]
[PlyCount "29"]
[EventDate "2022.06.18"]
[EventType "swiss"]
[EventCountry "CZE"]
[SourceTitle "playchess.com"]
[Source "ChessBase"]
[SourceQuality "1"]
[TimeControl "40/5400+30:1800+30"]

{[%evp 15,29,6,11,13,39,0,0,0,0,0,0,0,0,0,0,0]} 1. d4 {[%emt 0:02:39]} Nf6 {[%emt 0:00:39]} 2. c4 {[%emt 0:00:30]} g6 {[%emt 0:00:13]} 3. Nc3 {[%emt 0:00:05]} d5 {[%emt 0:00:09]} 4. cxd5 {[%emt 0:00:08]} Nxd5 {[%emt 0:00:06]} 5. e4 {[%emt 0:00:04]} Nxc3 {[%emt 0:00:08]} 6. bxc3 {[%emt 0:00:04]} Bg7 {[%emt 0:00:13]} 7. Nf3 {[%emt 0:00:12][%cal Bg1f3,Bf3d2,Bd2b3][%mdl 32]} c5 {[%emt 0:00:19]} 8. Be3 {[%emt 0:00:05]} Qa5 {[%emt 0:00:12]} 9. Nd2 {[%emt 0:00:09] D85: Exchange Grünfeld: Unusual White 7th moves and lines with 7 Nf3.} Nd7 {[%emt 0:00:14]} 10. Nb3 {[%emt 0:00:06] [#]} Qxc3+ $1 $146 {[%emt 0:00:06][%mdl 8] The position is equal. An important novelty.} ({Predecessor:} 10... Qc7 11. Rc1 O-O 12. Be2 Nf6 13. f3 b6 14. dxc5 Nd7 15. cxb6 axb6 16. Qc2 Qa7 {½-½ (44) So,W (2770)-Vachier Lagrave,M (2760) chess24.com INT 2021}) 11. Bd2 {[%emt 0:00:03]} Qb2 {[%emt 0:00:09]} 12. Bc1 {[%emt 0:00:06]} Qc3+ {[%emt 0:00:05]} 13. Bd2 {[%emt 0:00:03]} Qb2 {[%emt 0:00:07]} 14. Bc1 {[%emt 0:00:06]} Qc3+ {[%emt 0:00:08]} 15. Bd2 {[%emt 0:00:03] An interesting draw.  Weighted Error Value: White=0.08 (flawless) /Black=0.06 (flawless)} 1/2-1/2

[Event "Teplice Open 2022"]
[Site "Teplice"]
[Date "2022.06.23"]
[Round "6.3"]
[White "Narayanan.S.L"]
[Black "Sankalp Gupta"]
[Result "1-0"]
[ECO "C19"]
[WhiteElo "2662"]
[BlackElo "2505"]
[Annotator "TA"]
[PlyCount "57"]
[EventDate "2022.06.18"]
[EventType "swiss"]
[EventCountry "CZE"]
[SourceTitle "playchess.com"]
[Source "ChessBase"]
[SourceQuality "1"]
[TimeControl "40/5400+30:1800+30"]

{[%evp 17,57,0,0,-4,-5,-16,0,0,0,-17,-18,-6,64,69,81,0,138,125,144,111,100,79,89,71,279,229,256,250,358,372,868,805,912,893,1117,1100,29983,1486,1504,1425,2002,1714]} 1. e4 {[%emt 0:02:21]} e6 {[%emt 0:06:05]} 2. d4 {[%emt 0:00:08]} d5 {[%emt 0:00:03]} 3. Nc3 {[%emt 0:00:06]} Bb4 {[%emt 0:00:04]} 4. e5 {[%emt 0:00:21]} c5 {[%emt 0:00:02]} 5. a3 {[%emt 0:00:06]} Bxc3+ {[%emt 0:00:11]} 6. bxc3 {[%emt 0:00:07]} Ne7 {[%emt 0:00:16]} 7. h4 {[%emt 0:00:54]} Qc7 {[%emt 0:00:52]} 8. Nf3 {[%emt 0:00:26]} b6 {[%emt 0:11:56]} 9. h5 {[%emt 0:00:20]} h6 $1 {[%emt 0:00:05]} 10. Bb5+ {[%emt 0:00:46] C19: French: 3 Nc3 Bb4: Main line: 7 Nf3 and 7 a4.} Bd7 {[%emt 0:00:48]} 11. a4 {[%emt 0:00:11]} Bxb5 {[%emt 0:09:56]} 12. axb5 {[%emt 0:00:07] The position is equal.} a5 {[%emt 0:00:30]} 13. Qd3 $5 {[%emt 0:07:26][%mdl 4] Leaves trodden paths.} Nd7 {[%emt 0:00:40]} 14. Ba3 {[%emt 0:04:24] [#]} f6 $146 {[%emt 0:10:51]} (14... Rc8 $11) ({Predecessor:} 14... Rc8 15. O-O-O cxd4 16. cxd4 Qc4 17. Kb2 Nf8 18. Qxc4 Rxc4 19. Rd3 Nh7 20. Nd2 Rc7 {1-0 (39) Safarli,E (2604)-Aitbayev,A (2475) Paracin 2021}) 15. exf6 $14 {[%emt 0:04:34]} gxf6 {[%emt 0:00:06]} 16. c4 {[%emt 0:21:35]} (16. O-O $16) 16... e5 {[%emt 0:01:55]} (16... cxd4 $1 $11 {remains equal.} 17. Nxd4 dxc4) 17. cxd5 $16 {[%emt 0:04:08] White is more active.} exd4 {[%emt 0:00:55]} 18. O-O {[%emt 0:02:28] [#] Strongly threatening c4.} Ne5 {[%emt 0:00:37]} 19. Nxe5 {[%emt 0:02:06]} fxe5 {[%emt 0:00:02]} 20. c4 {[%emt 0:02:29][%cal Of2f4] Black must now prevent f4!} O-O-O $2 {[%emt 0:01:23] A mistake that costs the game.} (20... O-O $16) 21. Rae1 {[%emt 0:01:08][%cal Of2f4] f4! is the strong threat.} Rhf8 {[%emt 0:06:11] [#]} 22. f4 $1 {[%emt 0:06:42]} exf4 {[%emt 0:02:11]} (22... e4 $142 23. Rxe4 (23. Qxe4 Nf5 $14) 23... Nf5) 23. Bc1 $18 {[%emt 0:00:22]} Nf5 $2 {[%emt 0:10:07]} (23... Rf6 24. Qh3+ Kb7) 24. Bxf4 {[%emt 0:01:19]} Qg7 {[%emt 0:00:21]} 25. Re6 {[%emt 0:03:42]} Ne3 {[%emt 0:00:16]} 26. Rg6 {[%emt 0:05:08]} ({Not} 26. Bxe3 Rxf1+ 27. Qxf1 dxe3 $16) 26... Qe7 {[%emt 0:00:42]} 27. Rxb6 {[%emt 0:00:47]} (27. Rc6+ $142 Kb7 28. d6 Rxd6 29. Bxd6 Rxf1+ 30. Qxf1 Nxf1 31. Bxe7 Ne3 32. Rxh6) 27... Rxf4 {[%emt 0:01:31]} 28. Rxf4 {[%emt 0:00:10] Threatening mate with Rff6.} Qg5 {[%emt 0:00:53]} 29. Qe4 {[%emt 0:00:17] Weighted Error Value: White=0.13 (very precise) /Black=0.79} 1-0

[Event "Teplice Open 2022"]
[Site "Teplice"]
[Date "2022.06.23"]
[Round "6.4"]
[White "Blomqvist, Erik"]
[Black "Santos Latasa, Jaime"]
[Result "0-1"]
[ECO "B11"]
[WhiteElo "2523"]
[BlackElo "2672"]
[Annotator "TA"]
[PlyCount "92"]
[EventDate "2022.06.18"]
[EventType "swiss"]
[EventCountry "CZE"]
[SourceTitle "playchess.com"]
[Source "ChessBase"]
[SourceQuality "1"]
[TimeControl "40/5400+30:1800+30"]

{[%evp 10,92,22,19,20,23,28,0,26,24,26,-7,0,0,1,0,0,0,0,-31,-24,-10,0,-47,-60,-69,0,-79,-64,-73,-68,-71,-61,-170,-166,-145,-150,-145,-108,-837,-829,-834,-810,-816,0,0,0,0,0,-411,-402,-412,-400,-391,-341,-315,-329,-353,-345,-350,-135,-135,-127,-128,-127,-127,-129,-154,-77,-655,-663,-652,-620,-595,-234,-1388,-1333,-1119,-408,-29972,-29969,-29996,-29997,-29997,-29995]} 1. e4 {[%emt 0:01:10]} c6 {[%emt 0:00:10]} 2. Nf3 {[%emt 0:00:44]} d5 {[%emt 0:00:06]} 3. Nc3 {[%emt 0:00:05]} Bg4 {[%emt 0:00:14]} 4. h3 {[%emt 0:00:20]} Bxf3 {[%emt 0:00:10]} 5. Qxf3 {[%emt 0:00:09]} e6 {[%emt 0:00:04]} 6. Be2 {[%emt 0:01:33]} Bc5 {[%emt 0:00:38] B11: Caro-Kann: Two Knights Variation.} 7. O-O {[%emt 0:01:20]} Ne7 {[%emt 0:01:39]} 8. Rd1 {[%emt 0:01:25]} Bd4 {[%emt 0:00:50] The position is equal.} (8... d4 $5 {[%cal Rd4c3]}) 9. exd5 {[%emt 0:08:14]} cxd5 {[%emt 0:05:04]} 10. Nb5 {[%emt 0:02:24] [#]} Bb6 $146 {[%emt 0:00:33]} ({Predecessor:} 10... Nbc6 11. c3 Bf6 12. d4 a6 13. Na3 h5 14. Bd3 Nc8 15. Re1 Kf8 16. Nc2 Nd6 {0-1 (44) Praggnanandhaa,R (2608)-Fedoseev,V (2678) Chess.com INT 2020}) 11. d4 {[%emt 0:00:13]} O-O {[%emt 0:00:22]} 12. c3 {[%emt 0:00:22]} Nbc6 {[%emt 0:00:33]} 13. Bd3 {[%emt 0:04:38]} Ng6 {[%emt 0:09:55]} 14. Be3 {[%emt 0:06:34]} a6 {[%emt 0:02:17]} 15. Na3 {[%emt 0:00:26]} Qd6 {[%emt 0:02:01]} 16. Nc2 {[%emt 0:05:18]} (16. g3 $11 {is superior.}) 16... f5 $1 $15 {[%emt 0:02:33][%cal Bf7f5,Bf5f4][%mdl 32]} (16... Bc7 17. g3 $14) 17. Qh5 {[%emt 0:09:55]} f4 $1 {[%emt 0:12:32] Against g3. Black is more active.} 18. Bd2 {[%emt 0:03:29]} (18. Bc1 $1 $11 {remains equal.}) 18... e5 $17 {[%emt 0:01:12]} 19. c4 {[%emt 0:01:10] Threatens to win with c5.} e4 $1 {[%emt 0:10:49]} (19... Nxd4 20. Bb4 Qc7 21. Nxd4 (21. Bxf8 dxc4 22. Nxd4 Bxd4 $16) 21... Bxd4 22. Bxf8 (22. cxd5 Bxf2+ 23. Kh1 f3 $11) 22... dxc4 23. Rac1 $1 (23. Bxg6 hxg6 24. Qxg6 Rxf8 $14) 23... Nxf8 24. Bxc4+ (24. Rxc4 Qb6 $16) 24... Kh8 25. Bb3 $18) 20. c5 {[%emt 0:02:26]} Qd7 {[%emt 0:00:14]} 21. Bxe4 {[%emt 0:06:13]} (21. Be2 $15 Bc7 22. Bg4) 21... dxe4 $19 {[%emt 0:01:05]} 22. cxb6 {[%emt 0:00:06]} Rf5 {[%emt 0:02:12]} 23. Qe2 {[%emt 0:02:30]} Re8 {[%emt 0:05:30]} 24. d5 $2 {[%emt 0:01:44][%mdl 8192] [#]} (24. f3 $17) 24... Rg5 $1 {[%emt 0:07:36][%cal Od7h3]} 25. dxc6 {[%emt 0:00:56]} Qxh3 $1 {[%emt 0:00:18][%csl Gg5][%cal Rh3g2]} 26. Ne1 {[%emt 0:05:52]} Nh4 $2 {[%emt 0:12:32]} ({Black should try} 26... Ne5 $19 {( -> ...Nf3+)} 27. Qc4+ Nxc4 28. Bxf4 Qh4 29. Bxg5 Qxg5) 27. f3 $11 {[%emt 0:00:55]} (27. g3 fxg3 $1 28. Qc4+ Kh8 29. Qf7 gxf2+ 30. Kxf2 Qh2+ 31. Ke3 Ng2+ 32. Kd4 Qe5+ 33. Kc4 Qb5+ 34. Kc3 Rc5+ 35. Kd4 Rc4+ $3 {[%mdl 512]} 36. Qxc4 Qe5#) 27... Rxg2+ $1 {[%emt 0:02:36][%mdl 64] Remove Defender} 28. Nxg2 {[%emt 0:02:28]} Nxf3+ $40 {[%emt 0:00:29][%mdl 128] White needs to defend precisely.} 29. Kf1 $2 {[%emt 0:25:51][%mdl 8192] [#]} (29. Kf2 $1 $11 e3+ 30. Bxe3 fxe3+ 31. Qxe3 (31. Nxe3 $2 Qh2+ 32. Ng2 Rxe2+ 33. Kxe2 Qxg2+ $19) 31... Rxe3 32. Nf4 (32. Nxe3 Ne5 $11)) 29... e3 $1 $19 {[%emt 0:03:21][%cal Rh3h1]} 30. Qc4+ {[%emt 0:02:10]} (30. Bxe3 $2 fxe3 31. Qc4+ Kh8 $19) 30... Kh8 {[%emt 0:00:34] The board is on fire.} 31. Qxf4 {[%emt 0:02:43]} ({Avoid the trap} 31. Bxe3 $2 fxe3 32. Qe4 Qh1+ 33. Ke2 Qxg2+ 34. Kxe3 Rxe4+ $19) 31... Nxd2+ {[%emt 0:00:41]} 32. Kg1 {[%emt 0:02:24]} Nf3+ {[%emt 0:00:06]} 33. Qxf3 {[%emt 0:00:10]} Qxf3 {[%emt 0:00:08]} 34. c7 {[%emt 0:00:06] Black must now prevent Rd8.} Qf6 {[%emt 0:01:27] Against Rd8} (34... Qf2+ $19 {is more deadly.} 35. Kh2 Qf8) 35. Rac1 $17 {[%emt 0:01:11]} e2 {[%emt 0:03:52]} ({Much worse is} 35... Qf2+ $6 36. Kh1 Qf8 37. Rf1 $11) 36. Rd8 {[%emt 0:00:31]} Qxb6+ {[%emt 0:00:55]} 37. Kh2 {[%emt 0:00:42][%cal Rd8e8]} Qh6+ {[%emt 0:00:30]} (37... Rxd8 38. c8=Q $19) 38. Kg3 {[%emt 0:00:26][%cal Rd8e8]} Qg5+ {[%emt 0:00:18]} 39. Kh2 $2 {[%emt 0:00:35][%mdl 8192]} (39. Kf2 $17 Rxd8 40. c8=Q) 39... Rxd8 $19 {[%emt 0:03:31]} 40. c8=Q {[%emt 0:00:08]} e1=Q {[%emt 0:01:24]} 41. Nxe1 {[%emt 0:01:43]} h6 $2 {[%emt 0:00:11]} (41... h5 42. Ng2 Rxc8 43. Rxc8+ Kh7) 42. Qc3 $2 {[%emt 0:05:17]} (42. Qc5 Rd2+ 43. Kh3) 42... Rd2+ {[%emt 0:00:56]} 43. Kh3 {[%emt 0:00:08]} Rf2 {[%emt 0:05:02]} (43... Qf5+ $142 44. Kg3 Qf2+ 45. Kh3 Re2) 44. Qd4 {[%emt 0:06:49]} (44. Nf3 $19 Qf4 45. Qc8+ Kh7 46. Rc3 Rxf3+ 47. Rxf3 Qxf3+ 48. Kh2) 44... Qh5+ {[%emt 0:00:31] Black mates.} 45. Kg3 {[%emt 0:00:05]} Qh2+ {[%emt 0:00:06]} 46. Kg4 {[%emt 0:00:06]} Qg1+ {[%emt 0:00:07] Weighted Error Value: White=0.76/Black=0.45} 0-1

[Event "Teplice Open 2022"]
[Site "Teplice"]
[Date "2022.06.23"]
[Round "6.5"]
[White "Iniyan, P."]
[Black "Berkes, Ferenc"]
[Result "1/2-1/2"]
[ECO "D15"]
[WhiteElo "2518"]
[BlackElo "2654"]
[Annotator "TA"]
[PlyCount "61"]
[EventDate "2022.06.18"]
[EventType "swiss"]
[EventCountry "CZE"]
[SourceTitle "playchess.com"]
[Source "ChessBase"]
[SourceQuality "1"]
[TimeControl "40/5400+30:1800+30"]

{[%evp 9,61,34,28,30,41,34,18,12,34,28,39,37,32,31,24,2,27,0,0,0,0,0,0,0,0,0,0,0,0,0,0,0,0,0,0,0,0,0,0,0,1,0,0,0,3,0,8,5,5,0,0,0,0,-1]} 1. d4 {[%emt 0:07:11]} d5 {[%emt 0:00:02]} 2. c4 {[%emt 0:00:07]} c6 {[%emt 0:00:06]} 3. Nf3 {[%emt 0:00:03]} Nf6 {[%emt 0:00:05]} 4. Nc3 {[%emt 0:00:04]} a6 {[%emt 0:00:05]} 5. e3 {[%emt 0:00:05]} Bf5 {[%emt 0:00:20]} 6. Ne5 {[%emt 0:00:06] D15: Slav Defence: 4 Nc3 a6 and gambit lines after 4 Nc3 dxc4.} Nbd7 {[%emt 0:02:51]} 7. Qb3 {[%emt 0:00:09][%csl LRb7,LRd5]} Qc7 {[%emt 0:02:44]} 8. cxd5 {[%emt 0:00:06]} (8. Nxd7 {seems wilder.} Qxd7 9. Na4 Qc7 10. Nb6) 8... Nxe5 {[%emt 0:00:14]} 9. dxe5 {[%emt 0:00:07]} Nxd5 {[%emt 0:00:05]} 10. Nxd5 {[%emt 0:08:05]} cxd5 {[%emt 0:00:28]} 11. Bd2 {[%emt 0:00:09]} Qxe5 {[%emt 0:18:21]} 12. Rc1 {[%emt 0:10:41]} Bd7 {[%emt 0:18:38] [#]} 13. Qxb7 $146 {[%emt 0:03:03]} (13. Bc3 $5 {[%cal Rc3e5]} Qc7 14. Qxd5 $14) ({Predecessor:} 13. Bc3 Qc7 14. Qxd5 Bc6 15. Qg5 Qd6 16. Bc4 Qg6 17. Qxg6 hxg6 18. f3 e6 19. Kf2 {½-½ (45) Giri,A (2777)-Andreikin,D (2728) Yasnaya Polyana 2021}) 13... Rb8 {[%emt 0:00:44] The position is equal.} 14. Qa7 {[%emt 0:00:06] [#] Threatens to win with Rc7.} Qxb2 {[%emt 0:07:10]} 15. Bd3 {[%emt 0:00:05] Strongly threatening Rc7.} Qb6 {[%emt 0:04:04]} 16. Qxb6 {[%emt 0:01:59]} Rxb6 {[%emt 0:00:23]} 17. Ke2 {[%emt 0:00:02]} e6 {[%emt 0:04:18]} 18. Rb1 {[%emt 0:00:05]} Rxb1 {[%emt 0:03:47]} 19. Rxb1 {[%emt 0:00:07] [#] Rb8+ is the strong threat.} Bd6 {[%emt 0:00:16] Inhibits Rb8+.} 20. Bxa6 {[%emt 0:06:33]} Ke7 {[%emt 0:00:07]} 21. Rb7 {[%emt 0:15:16] And now Bb5 would win.} Rb8 {[%emt 0:00:40]} 22. Rxb8 {[%emt 0:00:13]} Bxb8 $11 {[%emt 0:00:13][%mdl 4096] Endgame KBB-KBB} 23. Bb4+ {[%emt 0:00:24]} Bd6 {[%emt 0:00:07]} 24. a3 {[%emt 0:00:04]} Bc6 {[%emt 0:00:29]} 25. f4 {[%emt 0:00:53]} Kd7 {[%emt 0:00:07]} 26. g3 {[%emt 0:00:07]} h6 {[%emt 0:01:10]} 27. Kd2 {[%emt 0:00:25]} g6 {[%emt 0:05:19]} 28. Kc3 {[%emt 0:00:09] next Bxd6 is good for White.} Bc7 {[%emt 0:00:11]} 29. Bf8 {[%emt 0:00:57]} Ba5+ {[%emt 0:00:22]} 30. Bb4 {[%emt 0:00:11]} Bb6 {[%emt 0:00:08]} 31. Kd3 {[%emt 0:00:23] Weighted Error Value: White=0.03 (flawless) /Black=0.02 (flawless)} 1/2-1/2